[Event "*** Titled Tuesday 3|2 Blitz"]
[Site "Chess.com"]
[Date "2016.08.02"]
[Round "3"]
[White "yian123"]
[Black "Andrejkin"]
[Result "1/2-1/2"]
[WhiteElo "2355"]
[BlackElo "2221"]
[TimeControl "180+2"]
[EndTime "11:38:11 PDT"]
[Termination "Game drawn by repetition"]

1. e4 {[%clk 0:03:01.9]} 1... e5 {[%clk 0:03:01.1]} 2. Nf3 {[%clk 0:03:02]} 2...
Nc6 {[%clk 0:03:02.4]} 3. Bb5 {[%clk 0:03:02.6]} 3... a6 {[%clk 0:03:03]} 4. Ba4
{[%clk 0:02:58.6]} 4... Nf6 {[%clk 0:03:03.3]} 5. O-O {[%clk 0:02:57.3]} 5...
Be7 {[%clk 0:03:04.8]} 6. Re1 {[%clk 0:02:57.1]} 6... b5 {[%clk 0:03:05.8]} 7.
Bb3 {[%clk 0:02:58.3]} 7... d6 {[%clk 0:03:07.7]} 8. c3 {[%clk 0:02:59.2]} 8...
O-O {[%clk 0:03:08.5]} 9. h3 {[%clk 0:03:00.2]} 9... Na5 {[%clk 0:03:09.7]} 10.
Bc2 {[%clk 0:03:00.8]} 10... c5 {[%clk 0:03:11.6]} 11. d4 {[%clk 0:03:02]} 11...
cxd4 {[%clk 0:03:13.5]} 12. cxd4 {[%clk 0:03:01.9]} 12... Qc7 {[%clk 0:03:15.4]}
13. Bg5 {[%clk 0:02:38.2]} 13... h6 {[%clk 0:03:15.7]} 14. Bh4 {[%clk
0:02:38.9]} 14... Bb7 {[%clk 0:03:16.8]} 15. Nbd2 {[%clk 0:02:35.2]} 15... Rfc8
{[%clk 0:03:15.5]} 16. Rc1 {[%clk 0:02:34.5]} 16... Nc4 {[%clk 0:03:14.3]} 17.
Bb3 {[%clk 0:02:29.4]} 17... a5 {[%clk 0:02:56.3]} 18. Nxc4 {[%clk 0:02:18.2]}
18... bxc4 {[%clk 0:02:58.2]} 19. Rxc4 {[%clk 0:02:17.5]} 19... Qb8 {[%clk
0:02:45]} 20. dxe5 {[%clk 0:02:15.2]} 20... dxe5 {[%clk 0:02:36.8]} 21. Bxf6
{[%clk 0:01:59.3]} 21... Bxf6 {[%clk 0:02:36.6]} 22. Qc2 {[%clk 0:01:43.5]}
22... Rxc4 {[%clk 0:02:30.3]} 23. Qxc4 {[%clk 0:01:44.2]} 23... Qe8 {[%clk
0:02:31.2]} 24. Qc7 {[%clk 0:01:36.2]} 24... Ba6 {[%clk 0:02:30.4]} 25. Bd5
{[%clk 0:01:29.5]} 25... Rc8 {[%clk 0:02:28.8]} 26. Qxa5 {[%clk 0:01:30.1]}
26... Bc4 {[%clk 0:02:29.4]} 27. Bxc4 {[%clk 0:01:24]} 27... Rxc4 {[%clk
0:02:31.3]} 28. Nd2 {[%clk 0:01:25.1]} 28... Ra4 {[%clk 0:02:30.3]} 29. Qc3
{[%clk 0:01:22.5]} 29... Rxa2 {[%clk 0:02:32.2]} 30. Nc4 {[%clk 0:01:23.6]}
30... Qb5 {[%clk 0:02:25.8]} 31. Rd1 {[%clk 0:01:21.4]} 31... Qa6 {[%clk
0:02:24.2]} 32. Ne3 {[%clk 0:01:19.5]} 32... Ra1 {[%clk 0:02:25.4]} 33. Rxa1
{[%clk 0:01:15.8]} 33... Qxa1+ {[%clk 0:02:27.3]} 34. Kh2 {[%clk 0:01:16.8]}
34... Qa7 {[%clk 0:02:27.5]} 35. Qc8+ {[%clk 0:01:14.5]} 35... Kh7 {[%clk
0:02:28.7]} 36. Qf5+ {[%clk 0:01:14.9]} 36... Kg8 {[%clk 0:02:27.9]} 37. Nd5
{[%clk 0:01:15.8]} 37... Bh4 {[%clk 0:02:26.9]} 38. g3 {[%clk 0:01:12.8]} 38...
g6 {[%clk 0:02:20.5]} 39. Qc8+ {[%clk 0:01:10.7]} 39... Kg7 {[%clk 0:02:21.6]}
40. Kg2 {[%clk 0:01:10.6]} 40... Qd4 {[%clk 0:02:17.3]} 41. Nc3 {[%clk 0:00:22]}
41... Bd8 {[%clk 0:02:07.8]} 42. Qg4 {[%clk 0:00:18.2]} 42... Ba5 {[%clk
0:02:07]} 43. Qf3 {[%clk 0:00:17.6]} 43... Bxc3 {[%clk 0:02:06.3]} 44. bxc3
{[%clk 0:00:18.2]} 44... Qc4 {[%clk 0:02:05.5]} 45. h4 {[%clk 0:00:19.3]} 45...
f6 {[%clk 0:02:06.2]} 46. Qe3 {[%clk 0:00:20.2]} 46... h5 {[%clk 0:02:05.6]} 47.
Qa7+ {[%clk 0:00:20.5]} 47... Kh6 {[%clk 0:02:06.4]} 48. Qe3+ {[%clk 0:00:21.4]}
48... Kg7 {[%clk 0:02:04.1]} 49. Kh2 {[%clk 0:00:22.4]} 49... Qc6 {[%clk
0:01:57.5]} 50. Qd3 {[%clk 0:00:22.9]} 50... Kf7 {[%clk 0:01:55.3]} 51. Qd5+
{[%clk 0:00:17.3]} 51... Qxd5 {[%clk 0:01:55.2]} 52. exd5 {[%clk 0:00:19.2]}
52... Ke7 {[%clk 0:01:57.1]} 53. c4 {[%clk 0:00:20.2]} 53... Kd6 {[%clk
0:01:57.1]} 54. f3 {[%clk 0:00:21]} 54... f5 {[%clk 0:01:53.7]} 55. Kg2 {[%clk
0:00:22.1]} 55... Kc5 {[%clk 0:01:54.8]} 56. Kf2 {[%clk 0:00:22.8]} 56... Kd6
{[%clk 0:01:54]} 57. Ke3 {[%clk 0:00:23.8]} 57... Kc5 {[%clk 0:01:53.9]} 58. Kd3
{[%clk 0:00:24.9]} 58... Kd6 {[%clk 0:01:53.6]} 59. Kc3 {[%clk 0:00:25.7]} 59...
Kc5 {[%clk 0:01:53.4]} 60. Kd3 {[%clk 0:00:24.3]} 60... Kd6 {[%clk 0:01:51.7]}
61. g4 {[%clk 0:00:21.4]} 61... hxg4 {[%clk 0:01:50.1]} 62. fxg4 {[%clk
0:00:22.3]} 62... fxg4 {[%clk 0:01:49.3]} 63. Ke3 {[%clk 0:00:23.1]} 63... Kc5
{[%clk 0:01:50.4]} 64. Ke4 {[%clk 0:00:23.8]} 64... Kd6 {[%clk 0:01:49.9]} 65.
Ke3 {[%clk 0:00:24.5]} 65... Kc5 {[%clk 0:01:48.3]} 66. Ke4 {[%clk 0:00:22.7]}
66... Kd6 {[%clk 0:01:48.3]} 67. Ke3 {[%clk 0:00:19.6]} 67... Kc5 {[%clk
0:01:48.7]} 1/2-1/2

[Event "*** Titled Tuesday 3|2 Blitz"]
[Site "Chess.com"]
[Date "2016.08.02"]
[Round "3"]
[White "MyleneFarmer"]
[Black "Ginger_GM"]
[Result "0-1"]
[WhiteElo "2355"]
[BlackElo "2401"]
[TimeControl "180+2"]
[EndTime "11:38:29 PDT"]
[Termination "Ginger_GM won on time"]

1. Nf3 {[%clk 0:03:01.9]} 1... f5 {[%clk 0:03:00.3]} 2. g3 {[%clk 0:03:01.3]}
2... Nf6 {[%clk 0:03:00.5]} 3. Bg2 {[%clk 0:03:02.8]} 3... d6 {[%clk 0:03:01.3]}
4. O-O {[%clk 0:03:04.3]} 4... e5 {[%clk 0:03:01.2]} 5. d3 {[%clk 0:03:04.5]}
5... Be7 {[%clk 0:03:02.1]} 6. Nc3 {[%clk 0:03:03.9]} 6... O-O {[%clk
0:03:02.7]} 7. e4 {[%clk 0:03:05.6]} 7... f4 {[%clk 0:02:54.4]} 8. d4 {[%clk
0:02:53.9]} 8... fxg3 {[%clk 0:02:34]} 9. hxg3 {[%clk 0:02:33.6]} 9... exd4
{[%clk 0:01:38.4]} 10. Nxd4 {[%clk 0:02:35.5]} 10... Qe8 {[%clk 0:01:34.2]} 11.
Bg5 {[%clk 0:02:20.1]} 11... Bg4 {[%clk 0:01:21.7]} 12. f3 {[%clk 0:02:15.1]}
12... Bd7 {[%clk 0:01:21.7]} 13. f4 {[%clk 0:02:00.9]} 13... Ng4 {[%clk
0:01:05.4]} 14. Bxe7 {[%clk 0:01:56.7]} 14... Qxe7 {[%clk 0:01:07.3]} 15. Nd5
{[%clk 0:01:48.7]} 15... Qd8 {[%clk 0:01:08.3]} 16. Bf3 {[%clk 0:01:34]} 16...
Nf6 {[%clk 0:01:04.5]} 17. Ne3 {[%clk 0:01:23.4]} 17... Nc6 {[%clk 0:01:02.4]}
18. Nef5 {[%clk 0:01:20.6]} 18... Nxd4 {[%clk 0:01:01.1]} 19. Nxd4 {[%clk
0:01:22.5]} 19... Qe8 {[%clk 0:00:57.6]} 20. Qd3 {[%clk 0:01:23.1]} 20... Qg6
{[%clk 0:00:57.6]} 21. Bg2 {[%clk 0:01:23.9]} 21... Rae8 {[%clk 0:00:55.7]} 22.
Rae1 {[%clk 0:01:23.7]} 22... Nh5 {[%clk 0:00:52.4]} 23. Re3 {[%clk 0:01:09.1]}
23... Kh8 {[%clk 0:00:40.3]} 24. Ne2 {[%clk 0:01:07.9]} 24... Bg4 {[%clk
0:00:36.8]} 25. Nc3 {[%clk 0:01:07.7]} 25... Nf6 {[%clk 0:00:33.8]} 26. a3
{[%clk 0:00:48.1]} 26... Qh5 {[%clk 0:00:31.8]} 27. e5 {[%clk 0:00:46.3]} 27...
Bf5 {[%clk 0:00:31.6]} 28. Qe2 {[%clk 0:00:44.5]} 28... Ng4 {[%clk 0:00:32.5]}
29. Bf3 {[%clk 0:00:46.1]} 29... dxe5 {[%clk 0:00:29.4]} 30. Rxe5 {[%clk
0:00:44.4]} 30... Qg6 {[%clk 0:00:22.8]} 31. Bxg4 {[%clk 0:00:37.6]} 31... Bxg4
{[%clk 0:00:23.5]} 32. Qe3 {[%clk 0:00:27.9]} 32... Rxe5 {[%clk 0:00:23.8]} 33.
fxe5 {[%clk 0:00:23.1]} 33... Rxf1+ {[%clk 0:00:23.9]} 34. Kxf1 {[%clk 0:00:25]}
34... b6 {[%clk 0:00:18.3]} 35. Qf4 {[%clk 0:00:18.2]} 35... h6 {[%clk
0:00:19.4]} 36. Ne4 {[%clk 0:00:18.9]} 36... Be6 {[%clk 0:00:20.2]} 37. b3
{[%clk 0:00:19.6]} 37... Bd5 {[%clk 0:00:21.5]} 38. Nf2 {[%clk 0:00:18.7]} 38...
Qxc2 {[%clk 0:00:21.5]} 39. Qf8+ {[%clk 0:00:19.1]} 39... Kh7 {[%clk 0:00:22.1]}
40. Qd8 {[%clk 0:00:17.9]} 40... Qb1+ {[%clk 0:00:22.8]} 41. Ke2 {[%clk
0:00:18.6]} 41... Qxb3 {[%clk 0:00:24.3]} 42. Qxc7 {[%clk 0:00:18]} 42... Qc4+
{[%clk 0:00:25.1]} 43. Qxc4 {[%clk 0:00:18.4]} 43... Bxc4+ {[%clk 0:00:27]} 44.
Ke3 {[%clk 0:00:19.9]} 44... Kg6 {[%clk 0:00:28.9]} 45. Kf4 {[%clk 0:00:20.7]}
45... Kf7 {[%clk 0:00:29.6]} 46. Ne4 {[%clk 0:00:22.2]} 46... Ke6 {[%clk
0:00:30.7]} 47. Nd6 {[%clk 0:00:23.4]} 47... Bd5 {[%clk 0:00:31.4]} 48. Nc8
{[%clk 0:00:23.4]} 48... g5+ {[%clk 0:00:32.3]} 49. Ke3 {[%clk 0:00:24.3]} 49...
Kxe5 {[%clk 0:00:33.7]} 50. Nxa7 {[%clk 0:00:25.8]} 50... h5 {[%clk 0:00:33.1]}
51. Nb5 {[%clk 0:00:23.9]} 51... h4 {[%clk 0:00:33.3]} 52. gxh4 {[%clk
0:00:25.2]} 52... gxh4 {[%clk 0:00:35.2]} 53. Nc3 {[%clk 0:00:24.1]} 53... h3
{[%clk 0:00:35]} 54. Kf2 {[%clk 0:00:25.4]} 54... h2 {[%clk 0:00:35.4]} 55. Nxd5
{[%clk 0:00:17.8]} 55... Kxd5 {[%clk 0:00:33.2]} 0-1

[Event "*** Titled Tuesday 3|2 Blitz"]
[Site "Chess.com"]
[Date "2016.08.02"]
[Round "3"]
[White "SabinoBrunello"]
[Black "diokletian"]
[Result "1/2-1/2"]
[WhiteElo "2588"]
[BlackElo "2455"]
[TimeControl "180+2"]
[EndTime "11:38:45 PDT"]
[Termination "Game drawn by stalemate"]

1. d4 {[%clk 0:03:01.9]} 1... Nf6 {[%clk 0:02:59.2]} 2. Nf3 {[%clk 0:03:02.4]}
2... d5 {[%clk 0:02:57.7]} 3. c4 {[%clk 0:03:02.1]} 3... e6 {[%clk 0:02:58.6]}
4. Bg5 {[%clk 0:03:02.1]} 4... h6 {[%clk 0:02:57.8]} 5. Bxf6 {[%clk 0:03:02.5]}
5... Qxf6 {[%clk 0:02:58.2]} 6. Nbd2 {[%clk 0:03:03.2]} 6... g6 {[%clk
0:02:51.5]} 7. Qc2 {[%clk 0:03:01.3]} 7... Qe7 {[%clk 0:02:46.6]} 8. g3 {[%clk
0:02:48.1]} 8... Bg7 {[%clk 0:02:46.8]} 9. Bg2 {[%clk 0:02:48.5]} 9... O-O
{[%clk 0:02:47.2]} 10. O-O {[%clk 0:02:48.6]} 10... c5 {[%clk 0:02:24.2]} 11.
dxc5 {[%clk 0:02:47]} 11... Qxc5 {[%clk 0:02:23.8]} 12. Rac1 {[%clk 0:02:44.2]}
12... dxc4 {[%clk 0:02:22.6]} 13. Nxc4 {[%clk 0:02:31.2]} 13... Nc6 {[%clk
0:02:19.9]} 14. Qb1 {[%clk 0:01:43]} 14... Qe7 {[%clk 0:02:05.2]} 15. Rfd1
{[%clk 0:01:42.3]} 15... e5 {[%clk 0:02:01.5]} 16. Ne3 {[%clk 0:01:17.1]} 16...
Be6 {[%clk 0:01:52.4]} 17. Nd5 {[%clk 0:01:17.5]} 17... Bxd5 {[%clk 0:01:50.9]}
18. Rxd5 {[%clk 0:01:17.9]} 18... e4 {[%clk 0:01:52.4]} 19. Nd2 {[%clk 0:01:16]}
19... e3 {[%clk 0:01:53]} 20. Ne4 {[%clk 0:01:09.5]} 20... exf2+ {[%clk
0:01:53.2]} 21. Kxf2 {[%clk 0:01:11.2]} 21... Rae8 {[%clk 0:01:47]} 22. Bf3
{[%clk 0:01:06.4]} 22... Nd4 {[%clk 0:01:42.2]} 23. Qd3 {[%clk 0:01:04.4]} 23...
Nxf3 {[%clk 0:01:36.6]} 24. exf3 {[%clk 0:01:05]} 24... Bxb2 {[%clk 0:01:28.4]}
25. Rc2 {[%clk 0:01:02.3]} 25... Bg7 {[%clk 0:01:27.5]} 26. Rd7 {[%clk
0:01:02.8]} 26... Qb4 {[%clk 0:01:25.9]} 27. Kg2 {[%clk 0:00:56.3]} 27... Re7
{[%clk 0:01:23.5]} 28. Rxe7 {[%clk 0:00:47.5]} 28... Qxe7 {[%clk 0:01:23.6]} 29.
Qd6 {[%clk 0:00:49.2]} 29... Qxd6 {[%clk 0:01:04.5]} 30. Nxd6 {[%clk 0:00:51.1]}
30... b6 {[%clk 0:01:03.5]} 31. f4 {[%clk 0:00:51.5]} 31... Rd8 {[%clk 0:00:57]}
32. Rc8 {[%clk 0:00:44.7]} 32... Bf6 {[%clk 0:00:57.4]} 33. Kf3 {[%clk
0:00:42.7]} 33... Kf8 {[%clk 0:00:55.5]} 34. Ke4 {[%clk 0:00:41.7]} 34... Be7
{[%clk 0:00:51.3]} 35. Rxd8+ {[%clk 0:00:41.1]} 35... Bxd8 {[%clk 0:00:52]} 36.
Kd5 {[%clk 0:00:38.5]} 36... a6 {[%clk 0:00:50.8]} 37. a4 {[%clk 0:00:37]} 37...
Ke7 {[%clk 0:00:48.1]} 38. Kc6 {[%clk 0:00:36.9]} 38... Ke6 {[%clk 0:00:45.6]}
39. Nb7 {[%clk 0:00:32.1]} 39... Bf6 {[%clk 0:00:40.3]} 40. Kxb6 {[%clk
0:00:33.1]} 40... Bd4+ {[%clk 0:00:41.1]} 41. Kxa6 {[%clk 0:00:34.3]} 41... Bg1
{[%clk 0:00:42]} 42. Kb5 {[%clk 0:00:30.1]} 42... Kd7 {[%clk 0:00:38.5]} 43. h3
{[%clk 0:00:26.2]} 43... Bh2 {[%clk 0:00:37.1]} 44. Nc5+ {[%clk 0:00:19.3]}
44... Kc8 {[%clk 0:00:35.6]} 45. g4 {[%clk 0:00:20.4]} 45... Bxf4 {[%clk
0:00:35.4]} 46. Nd3 {[%clk 0:00:22.1]} 46... Bg3 {[%clk 0:00:34.2]} 47. Kc6
{[%clk 0:00:23.7]} 47... f5 {[%clk 0:00:35.1]} 48. gxf5 {[%clk 0:00:24.5]} 48...
gxf5 {[%clk 0:00:36.4]} 49. Kd5 {[%clk 0:00:25.8]} 49... Kd7 {[%clk 0:00:33.4]}
50. a5 {[%clk 0:00:26.5]} 50... Kc7 {[%clk 0:00:34.7]} 51. Nc5 {[%clk
0:00:26.1]} 51... Kb8 {[%clk 0:00:31.2]} 52. Ne6 {[%clk 0:00:25.6]} 52... Ka7
{[%clk 0:00:29.1]} 53. Ng7 {[%clk 0:00:26.7]} 53... f4 {[%clk 0:00:29.4]} 54.
Ke4 {[%clk 0:00:27.8]} 54... Ka6 {[%clk 0:00:30.5]} 55. Nf5 {[%clk 0:00:29.1]}
55... h5 {[%clk 0:00:28.3]} 56. Ng7 {[%clk 0:00:30.1]} 56... h4 {[%clk
0:00:28.8]} 57. Nh5 {[%clk 0:00:31.7]} 57... Kxa5 {[%clk 0:00:29.4]} 58. Nxf4
{[%clk 0:00:33.3]} 58... Bxf4 {[%clk 0:00:22.3]} 59. Kxf4 {[%clk 0:00:33.6]}
59... Kb6 {[%clk 0:00:23.3]} 60. Kg4 {[%clk 0:00:35.3]} 60... Kc7 {[%clk
0:00:24.6]} 61. Kxh4 {[%clk 0:00:37.2]} 61... Kd8 {[%clk 0:00:25.9]} 62. Kg5
{[%clk 0:00:39.1]} 62... Ke8 {[%clk 0:00:27.2]} 63. Kg6 {[%clk 0:00:40.9]} 63...
Kf8 {[%clk 0:00:28.5]} 64. Kh7 {[%clk 0:00:42.7]} 64... Kf7 {[%clk 0:00:29.7]}
65. h4 {[%clk 0:00:44.6]} 65... Kf8 {[%clk 0:00:31.1]} 66. h5 {[%clk 0:00:46.2]}
66... Kf7 {[%clk 0:00:32.4]} 67. h6 {[%clk 0:00:48.1]} 67... Kf8 {[%clk
0:00:33.7]} 68. Kh8 {[%clk 0:00:50]} 68... Kf7 {[%clk 0:00:35]} 69. h7 {[%clk
0:00:51.9]} 69... Kf8 {[%clk 0:00:36]} 1/2-1/2

[Event "*** Titled Tuesday 3|2 Blitz"]
[Site "Chess.com"]
[Date "2016.08.02"]
[Round "3"]
[White "chipmunknau"]
[Black "Journey_to_GrandMaster_YT"]
[Result "1-0"]
[WhiteElo "2437"]
[BlackElo "2441"]
[TimeControl "180+2"]
[EndTime "11:38:54 PDT"]
[Termination "chipmunknau won by resignation"]

1. Nf3 {[%clk 0:03:01.9]} 1... d6 {[%clk 0:03:01.2]} 2. d4 {[%clk 0:03:02.5]}
2... Nf6 {[%clk 0:03:03.1]} 3. Nc3 {[%clk 0:03:03.2]} 3... Nbd7 {[%clk 0:03:05]}
4. e4 {[%clk 0:03:04.2]} 4... e5 {[%clk 0:03:06]} 5. Bc4 {[%clk 0:03:05.2]} 5...
Be7 {[%clk 0:03:07.2]} 6. O-O {[%clk 0:02:58.6]} 6... O-O {[%clk 0:03:08]} 7. h3
{[%clk 0:02:58.9]} 7... c6 {[%clk 0:03:09.2]} 8. a4 {[%clk 0:02:54]} 8... Nxe4
{[%clk 0:03:10.2]} 9. Nxe4 {[%clk 0:02:32.4]} 9... d5 {[%clk 0:03:10.2]} 10.
Bxd5 {[%clk 0:02:28.3]} 10... cxd5 {[%clk 0:03:09.9]} 11. Nc3 {[%clk 0:02:30.2]}
11... e4 {[%clk 0:03:11.3]} 12. Nh2 {[%clk 0:02:27.8]} 12... Nf6 {[%clk
0:03:07.9]} 13. Bf4 {[%clk 0:02:23.8]} 13... Be6 {[%clk 0:03:04.3]} 14. a5
{[%clk 0:02:16.5]} 14... Rc8 {[%clk 0:03:02.3]} 15. Re1 {[%clk 0:02:14.5]} 15...
Qd7 {[%clk 0:03:00.3]} 16. Nf1 {[%clk 0:02:14.2]} 16... Rc6 {[%clk 0:02:46.3]}
17. Na4 {[%clk 0:02:03.8]} 17... Rfc8 {[%clk 0:02:36.7]} 18. c3 {[%clk
0:02:04.5]} 18... Ne8 {[%clk 0:02:28.5]} 19. Qd2 {[%clk 0:01:59.3]} 19... Nd6
{[%clk 0:02:12.7]} 20. Ne3 {[%clk 0:01:51]} 20... Nc4 {[%clk 0:02:12.2]} 21.
Nxc4 {[%clk 0:01:51.8]} 21... Rxc4 {[%clk 0:02:13.3]} 22. b3 {[%clk 0:01:42.1]}
22... R4c6 {[%clk 0:02:12.3]} 23. b4 {[%clk 0:01:42.5]} 23... Rc4 {[%clk
0:01:16.3]} 24. Rec1 {[%clk 0:01:32.7]} 24... h6 {[%clk 0:01:09.5]} 25. Nb2
{[%clk 0:01:28.7]} 25... R4c6 {[%clk 0:00:55.9]} 26. b5 {[%clk 0:01:26.4]} 26...
Rd6 {[%clk 0:00:54.1]} 27. Qe2 {[%clk 0:01:12.9]} 27... Bg5 {[%clk 0:00:53.4]}
28. Bxg5 {[%clk 0:00:39]} 28... hxg5 {[%clk 0:00:53.8]} 29. Na4 {[%clk
0:00:38.4]} 29... b6 {[%clk 0:00:45.4]} 30. axb6 {[%clk 0:00:38.6]} 30... axb6
{[%clk 0:00:47.3]} 31. Nb2 {[%clk 0:00:37.2]} 31... f5 {[%clk 0:00:43.8]} 32.
Ra6 {[%clk 0:00:32.6]} 32... f4 {[%clk 0:00:39.6]} 33. Na4 {[%clk 0:00:31.9]}
33... Rb8 {[%clk 0:00:34.2]} 34. Rb1 {[%clk 0:00:28.9]} 34... g4 {[%clk
0:00:34.2]} 35. Qd2 {[%clk 0:00:22.9]} 35... f3 {[%clk 0:00:29.3]} 36. Qf4
{[%clk 0:00:19.7]} 36... fxg2 {[%clk 0:00:27]} 37. Nc5 {[%clk 0:00:19]} 37...
Qe7 {[%clk 0:00:20]} 38. hxg4 {[%clk 0:00:17.3]} 38... Bf7 {[%clk 0:00:16.1]}
39. g5 {[%clk 0:00:11]} 39... Rf8 {[%clk 0:00:15.1]} 40. Qe5 {[%clk 0:00:10.7]}
40... Qxe5 {[%clk 0:00:14]} 41. dxe5 {[%clk 0:00:12.6]} 41... Rg6 {[%clk
0:00:15.4]} 42. Nd7 {[%clk 0:00:12.6]} 42... Rd8 {[%clk 0:00:15]} 43. Nxb6
{[%clk 0:00:09.9]} 43... Rxg5 {[%clk 0:00:14.7]} 44. Ra8 {[%clk 0:00:09.5]}
44... Rxa8 {[%clk 0:00:13.6]} 45. Nxa8 {[%clk 0:00:11.4]} 45... Be8 {[%clk
0:00:12.2]} 46. b6 {[%clk 0:00:03.6]} 46... Bc6 {[%clk 0:00:13.2]} 47. b7 {[%clk
0:00:03.9]} 47... Bxb7 {[%clk 0:00:14.8]} 48. Rxb7 {[%clk 0:00:05.8]} 48... Rxe5
{[%clk 0:00:15.7]} 49. Nb6 {[%clk 0:00:06.3]} 49... e3 {[%clk 0:00:15.8]} 50.
fxe3 {[%clk 0:00:07]} 50... Rxe3 {[%clk 0:00:16.9]} 51. Nxd5 {[%clk 0:00:08.2]}
51... Rd3 {[%clk 0:00:18.3]} 52. Rd7 {[%clk 0:00:08.6]} 52... Rd2 {[%clk
0:00:18.7]} 53. Nf6+ {[%clk 0:00:08.8]} 53... gxf6 {[%clk 0:00:18.2]} 54. Rxd2
{[%clk 0:00:10.7]} 1-0

[Event "*** Titled Tuesday 3|2 Blitz"]
[Site "Chess.com"]
[Date "2016.08.02"]
[Round "3"]
[White "Oleksandr_Bortnyk"]
[Black "pedromartinez91"]
[Result "0-1"]
[WhiteElo "2525"]
[BlackElo "2277"]
[TimeControl "180+2"]
[EndTime "11:38:55 PDT"]
[Termination "pedromartinez91 won by resignation"]

1. e4 {[%clk 0:03:01.2]} 1... c5 {[%clk 0:03:00.3]} 2. Nf3 {[%clk 0:03:00.9]}
2... Nc6 {[%clk 0:03:01.2]} 3. c3 {[%clk 0:03:00.5]} 3... d5 {[%clk 0:02:58]} 4.
exd5 {[%clk 0:02:57.7]} 4... Qxd5 {[%clk 0:02:59.6]} 5. d4 {[%clk 0:02:59.6]}
5... Bf5 {[%clk 0:02:59.9]} 6. Be3 {[%clk 0:02:39.2]} 6... e6 {[%clk 0:02:41.7]}
7. Na3 {[%clk 0:02:33.5]} 7... cxd4 {[%clk 0:02:34]} 8. Nb5 {[%clk 0:02:30.7]}
8... Qd7 {[%clk 0:02:33.9]} 9. Nbxd4 {[%clk 0:02:18.9]} 9... Bg4 {[%clk
0:02:24.5]} 10. Bb5 {[%clk 0:01:54.7]} 10... Nge7 {[%clk 0:02:03.2]} 11. Qa4
{[%clk 0:01:53]} 11... Bxf3 {[%clk 0:01:47.3]} 12. Nxf3 {[%clk 0:01:48.7]} 12...
a6 {[%clk 0:01:46.7]} 13. Rd1 {[%clk 0:01:44.9]} 13... Qc8 {[%clk 0:01:44.8]}
14. Be2 {[%clk 0:01:35.4]} 14... Nd5 {[%clk 0:01:43.5]} 15. Bc1 {[%clk
0:01:28.2]} 15... b5 {[%clk 0:01:28.8]} 16. Qc2 {[%clk 0:01:28.2]} 16... Be7
{[%clk 0:01:23.1]} 17. h4 {[%clk 0:01:27.5]} 17... h6 {[%clk 0:01:22]} 18. Rh3
{[%clk 0:01:25.1]} 18... Bf6 {[%clk 0:01:21.1]} 19. Rg3 {[%clk 0:01:24]} 19...
Ne5 {[%clk 0:01:12.1]} 20. Qe4 {[%clk 0:01:21]} 20... Nxf3+ {[%clk 0:00:48.5]}
21. Bxf3 {[%clk 0:01:22.9]} 21... Kf8 {[%clk 0:00:46.7]} 22. h5 {[%clk
0:01:17.6]} 22... Qc5 {[%clk 0:00:40.5]} 23. Be3 {[%clk 0:01:12.9]} 23... Qc7
{[%clk 0:00:36.7]} 24. Bd4 {[%clk 0:01:04.3]} 24... Rd8 {[%clk 0:00:34.3]} 25.
Qg4 {[%clk 0:01:02.3]} 25... Bg5 {[%clk 0:00:27.8]} 26. Be4 {[%clk 0:00:46.4]}
26... f5 {[%clk 0:00:26.2]} 27. Rf3 {[%clk 0:00:33.3]} 27... Nf6 {[%clk
0:00:26.8]} 28. Bxf6 {[%clk 0:00:30.3]} 28... Rxd1+ {[%clk 0:00:28.4]} 29. Kxd1
{[%clk 0:00:31.8]} 29... gxf6 {[%clk 0:00:30]} 30. Bxf5 {[%clk 0:00:32.3]} 30...
exf5 {[%clk 0:00:26.6]} 31. Qxf5 {[%clk 0:00:34.2]} 31... Ke7 {[%clk 0:00:21.6]}
32. Kc2 {[%clk 0:00:32]} 32... Qe5 {[%clk 0:00:21.6]} 33. Qg6 {[%clk 0:00:25.3]}
33... Rf8 {[%clk 0:00:17.6]} 34. Qh7+ {[%clk 0:00:18.3]} 34... Rf7 {[%clk
0:00:17.6]} 35. Qd3 {[%clk 0:00:19.8]} 35... f5 {[%clk 0:00:16.1]} 36. a3 {[%clk
0:00:17.1]} 36... Qe4 {[%clk 0:00:17]} 37. Kb3 {[%clk 0:00:14.9]} 37... Qxd3
{[%clk 0:00:16.4]} 38. Rxd3 {[%clk 0:00:16.8]} 38... Ke6 {[%clk 0:00:17.7]} 39.
Kb4 {[%clk 0:00:18]} 39... Rd7 {[%clk 0:00:12.3]} 40. Rxd7 {[%clk 0:00:17.2]}
40... Kxd7 {[%clk 0:00:13.9]} 41. Ka5 {[%clk 0:00:19.1]} 41... Kc6 {[%clk
0:00:14.9]} 42. Kxa6 {[%clk 0:00:17.7]} 42... Bc1 {[%clk 0:00:16]} 43. b3 {[%clk
0:00:17.5]} 43... Bxa3 {[%clk 0:00:16.9]} 44. Ka5 {[%clk 0:00:18]} 44... Bb2
{[%clk 0:00:15.2]} 45. Kb4 {[%clk 0:00:17.5]} 45... Bc1 {[%clk 0:00:15.1]} 46.
g3 {[%clk 0:00:15]} 46... Bd2 {[%clk 0:00:15.4]} 47. f3 {[%clk 0:00:16.4]} 47...
Be1 {[%clk 0:00:16.6]} 48. g4 {[%clk 0:00:17.6]} 48... fxg4 {[%clk 0:00:17.9]}
49. fxg4 {[%clk 0:00:18.6]} 49... Bd2 {[%clk 0:00:19.6]} 50. Ka5 {[%clk
0:00:15.7]} 50... Bxc3+ {[%clk 0:00:20.7]} 51. Ka6 {[%clk 0:00:17.6]} 51... Bf6
{[%clk 0:00:21.1]} 52. Ka7 {[%clk 0:00:18]} 52... Kc5 {[%clk 0:00:22.4]} 53. Kb7
{[%clk 0:00:19.4]} 53... Kb4 {[%clk 0:00:23.7]} 54. Kc6 {[%clk 0:00:21]} 54...
Bg5 {[%clk 0:00:23.7]} 55. Kb6 {[%clk 0:00:22.4]} 55... Be3+ {[%clk 0:00:24.1]}
56. Kc6 {[%clk 0:00:23.8]} 56... Bf2 {[%clk 0:00:24.2]} 57. Kd5 {[%clk
0:00:21.7]} 57... Kxb3 {[%clk 0:00:24.4]} 58. g5 {[%clk 0:00:21.6]} 58... hxg5
{[%clk 0:00:24.9]} 59. h6 {[%clk 0:00:23.5]} 59... Kc3 {[%clk 0:00:25.5]} 60. h7
{[%clk 0:00:25.4]} 60... Bd4 {[%clk 0:00:27]} 61. Ke4 {[%clk 0:00:26.7]} 61...
b4 {[%clk 0:00:28]} 62. Kf5 {[%clk 0:00:28.6]} 62... b3 {[%clk 0:00:29.2]} 63.
Kxg5 {[%clk 0:00:30.5]} 63... b2 {[%clk 0:00:30.5]} 64. h8=Q {[%clk 0:00:31.6]}
64... Bxh8 {[%clk 0:00:31.2]} 0-1